Cogmind - Beta 13 @@@ ROGUE MODE // 2024.05.27 @ 19:03:17 Player: Xorko Result: Self-destructed Performance ------------- Evolutions (1) 500 Regions Visited (2) 400 Robots Destroyed (18) 90 Value Destroyed (532) 532 Prototype IDs (0) 0 Alien Tech Used (0) 0 Bonus (0) 0 TOTAL SCORE: 1522 Bonus ------- None Cogmind --------- Core Integrity 261/400 Matter 295/300 Energy 265/265 System Corruption 0% Temperature Danger (411) Movement Walking (260) Ox2 Location -9/Materials Parts ------- > --- POWER (1) -------- Improved Ion Engine > --- PROPULSION (3) --- Aluminum Leg > --- UTILITY (3) ------ Medium Storage Unit ECM Suite > --- WEAPON (2) ------- Beam Rifle Spread Laser > --- INVENTORY (10) --- Ion Engine Ion Engine Heavy Ion Engine Light Treads Light Treads Large Storage Unit Small Laser Light Assault Rifle Peak State ------------ > --- POWER ------------ Improved Ion Engine > --- PROPULSION ------- Aluminum Leg Aluminum Leg Aluminum Leg > --- UTILITY ---------- Medium Storage Unit ECM Suite Medium Armor Plating > --- WEAPON ----------- EM Pulse Gun Spread Laser > --- INVENTORY -------- Ion Engine Ion Engine Light Treads Light Treads Aluminum Leg Large Storage Unit Small Laser Beam Rifle Light Assault Rifle [Rating: 13] Favorites ----------- Power Improved Ion Engine Engine Improved Ion Engine Propulsion Aluminum Leg Treads Light Treads Leg Aluminum Leg Utility Medium Storage Unit Device ECM Suite Storage Medium Storage Unit Protection Utility Shielding Weapon EM Pulse Gun Energy Gun EM Pulse Gun Ballistic Gun Assault Rifle Build | -11 -10 -9 ------- Run | Yrd Mat Mat Slots Evolved 2 | . . 2 Power . | . . . Propulsion 1 | . . 1 Utility 1 | . . 1 Weapon . | . . . Parts Attached 18 | 5 5 8 Power 2 | 1 . 1 Engine 2 | 1 . 1 Core . | . . . Reactor . | . . . Propulsion 6 | 2 1 3 Treads 1 | . . 1 Leg 5 | 2 1 2 Wheel . | . . . Hover . | . . . Flight . | . . . Utility 5 | 1 2 2 Device 1 | . . 1 Storage 2 | 1 1 . Processor . | . . . Hackware . | . . . Protection 2 | . 1 1 Artifact . | . . . Weapon 5 | 1 2 2 Energy Gun 4 | 1 1 2 Energy Cannon . | . . . Ballistic Gun 1 | . 1 . Ballistic Cannon . | . . . Launcher . | . . . Special Weapon . | . . . Impact Weapon . | . . . Slashing Weapon . | . . . Piercing Weapon . | . . . Special Melee Weapon . | . . . Unidentified Prototypes . | . . . Parts Lost 6 | . . 6 Power . | . . . Propulsion 3 | . . 3 Utility 1 | . . 1 Weapon 2 | . . 2 Highest Loss Streak 3 | . . 3 To Critical Strikes . | . . . Average Slot Usage (%) 97 | . 98 97 Engine 11 | . 14 11 Leg 30 | . 28 31 Device 8 | . . 10 Storage 11 | . 14 11 Protection 10 | . 13 10 Energy Gun 14 | . 14 15 Ballistic Gun 8 | . 13 6 Naked Turns . | . . . Heaviest Build 31 | 12 20 31 Greatest Support 30 | 20 20 30 Greatest Overweight (x) 1 | . . 1 Average Overweight (x) . | . . . Largest Inventory Capacity 10 | 8 10 10 Average Capacity 9 | 6 9 10 Most Carried 10 | 5 10 10 Average Carried 8 | 4 7 9 Final Capacity 10 | 8 10 10 Final Carried 10 | 5 10 8 Class Distribution -------------------- 100% | Mutant Dominant Class ---------------- Mutant | -10/Materials Mutant | -9/Materials Resources | -11 -10 -9 ----------- Run | Yrd Mat Mat Matter Collected 604 | 248 75 281 Remotely . | . . . Salvage Created 652 | . 207 445 Parts 45 | . 17 28 Haulers Intercepted . | . . . Recyclers Shooed 2 | . . 2 Parts Field Recycled . | . . . Retrieved Matter . | . . . Parts Self-Destructed . | . . . Prevented . | . . . Kills | -11 -10 -9 ------- Run | Yrd Mat Mat Combat Hostiles Destroyed 15 | . 5 10 Guns 15 | . 5 10 Classes Destroyed 5 | . 2 3 Recycler 1 | . . 1 Watcher 2 | . 1 1 Swarmer 3 | . . 3 Grunt 9 | . 5 4 Sentry 3 | . . 3 Best Kill Streak 4 | . 3 4 Combat Bots Only 3 | . 3 3 Max Kills in Single Turn 2 | . 1 2 Gunslinging 1 | . . 1 Exploded . | . . . Melee . | . . . Uniques/NPCs Destroyed . | . . . Combat | -11 -10 -9 -------- Run | Yrd Mat Mat Hostile Shots Fired 87 | . 13 74 Missed 20 | . 5 15 Damage Taken 1000 | . 213 787 Core 149 | . 10 139 Absorbed by Shields . | . . . Redirected to Shielding 8 | . . 8 Core Remaining (%) 98 | 100 96 . Volleys Fired 48 | . 11 37 Largest 2 | . 2 2 Hottest 121 | . 60 121 Shots Fired 94 | . 22 72 Gun 94 | . 22 72 Cannon . | . . . Launcher . | . . . Special . | . . . Kinetic 25 | . 11 14 Thermal 29 | . . 29 Explosive . | . . . Electromagnetic 40 | . 11 29 Robot Hit Streak 11 | . 7 11 Robot Miss Streak 4 | . 1 4 Penetration Max . | . . . Secondary Targets 1 | . . 1 Max Gunslinging Chain 1 | . . 1 Shots Hit Robots 75 | . 18 57 Core Hits 50 | . 9 41 Critical Kills . | . . . Critical Parts Destroyed . | . . . Critical Strikes 1 | . . 1 Corrupt 1 | . . 1 Melee Attacks . | . . . Impact . | . . . Slashing . | . . . Piercing . | . . . Sneak Attacks . | . . . Combat Hostiles . | . . . Follow-up Attacks . | . . . Damage Inflicted 978 | . 236 742 Guns 978 | . 236 742 Cannons . | . . . Explosions . | . . . Melee . | . . . Ramming . | . . . Kinetic 274 | . 127 147 Thermal 336 | . . 336 Explosive . | . . . Electromagnetic 368 | . 109 259 Impact . | . . . Slashing . | . . . Piercing . | . . . Highest Corruption 1 | . 1 . Average Corruption 1 | . 1 . Corruption Purged . | . . . Corruption Blocked . | . . . Overload Shots . | . . . Overflow Damage . | . . . Projectiles . | . . . Explosions . | . . . Melee . | . . . Knockbacks . | . . . Impact . | . . . Kinetic . | . . . Secondary . | . . . Self-Inflicted Damage . | . . . Shots . | . . . Rammed . | . . . Targets Rammed . | . . . Kicked . | . . . Crushed . | . . . Highest Temperature 503 | . 42 503 Average Temperature 155 | . 20 178 Received Heat Transfer 369 | . 48 321 Effects 9 | . . 9 Shutdowns 4 | . . 4 Interference 1 | . . 1 Matter Decay 3 | . . 3 Damage (minor) 1 | . . 1 Siege Activations . | . . . Robots Corrupted . | . . . Combat Hostiles . | . . . Parts Fried . | . . . Impact Corruptions . | . . . Robots Melted . | . . . Combat Hostiles . | . . . Parts Melted 1 | . . 1 Heat Transferred 449 | . . 449 Parts Sabotaged . | . . . Parts Stolen . | . . . Parts Stripped . | . . . Power Chain Reactions . | . . . Alert | -11 -10 -9 ------- Run | Yrd Mat Mat Peak Influence 263 | . 147 263 Initial 61 | . . 61 Average 112 | . 72 136 Maximum Alert Level 1 | . . 1 Low Security (%) 92 | 100 100 88 Level 1 7 | . . 11 Level 2 . | . . . Level 3 . | . . . Level 4 . | . . . Level 5 . | . . . High Security . | . . . Max Security . | . . . Squads Dispatched 4 | . 1 3 Investigation 1 | . . 1 Extermination . | . . . Reinforcement 3 | . 1 2 Assault . | . . . Garrison . | . . . Intercept . | . . . Searches Triggered . | . . . Construction Impeded . | . . . Haulers Reinforced . | . . . Active Scanning Responses . | . . . Cargo Convoy Interrupts . | . . . Stealth | -11 -10 -9 --------- Run | Yrd Mat Mat Distress Signals 6 | . . 6 Communications Jammed . | . . . Distress Signals . | . . . Times Spotted 27 | . 7 20 Peak Tracking Total 7 | . 3 7 Tactical Retreats 4 | . . 4 Traps | -11 -10 -9 ------- Run | Yrd Mat Mat Traps Triggered 2 | . 1 1 Indirectly . | . . . Trap Hack Attempts . | . . . Triggered . | . . . Disarmed . | . . . Reprogrammed . | . . . Reused . | . . . Traps Extracted . | . . . Installed . | . . . Triggered . | . . . Machines | -11 -10 -9 ---------- Run | Yrd Mat Mat Machines Disabled 1 | . . 1 Max in Single Turn 1 | . . 1 Machines Repaired . | . . . Machines Dismantled . | . . . Machines Sabotaged . | . . . Overloaded Fab Kills . | . . . Hacking | -11 -10 -9 --------- Run | Yrd Mat Mat Machines Accessed . | . . . Terminals . | . . . Fabricators . | . . . Repair Stations . | . . . Recycling Units . | . . . Scanalyzers . | . . . Garrison Access . | . . . Total Hacks . | . . . Successful . | . . . Failed . | . . . Catastrophic . | . . . Database Lockouts . | . . . Manual . | . . . Terminals . | . . . Fabricators . | . . . Repair Stations . | . . . Recycling Units . | . . . Scanalyzers . | . . . Garrison Access . | . . . Terminal Hacks . | . . . Fabricator Hacks . | . . . Repair Station Hacks . | . . . Recycling Unit Hacks . | . . . Scanalyzer . | . . . Garrison Access Hacks . | . . . Unauthorized Hacks . | . . . Terminals . | . . . Fabricators . | . . . Repair Stations . | . . . Recycling Units . | . . . Scanalyzers . | . . . Garrison Access . | . . . Data Cores Recovered . | . . . Used . | . . . Hacking Detections . | . . . Full Trace Events . | . . . Feedback Events . | . . . Feedback Blocked . | . . . Robot Schematics Acquired . | . . . Robots Built . | . . . Authchips . | . . . Time . | . . . Total Robot Build Rating . | . . . Part Schematics Acquired . | . . . Parts Built . | . . . Authchips . | . . . Time . | . . . Total Part Build Rating . | . . . Parts Repaired . | . . . Time . | . . . Parts Recycled . | . . . Recycled Matter . | . . . Retrieved Matter . | . . . Retrieved Components . | . . . Parts Scanalyzed . | . . . Part Schematics Acquired . | . . . Parts Damaged . | . . . Bothacking | -11 -10 -9 ------------ Run | Yrd Mat Mat Used RIF Installer . | . . . Robots Hacked . | . . . Non-combat . | . . . Combat . | . . . Robot Hacks Applied . | . . . Relay Couplers Released . | . . . Fabnet Peak Effective % . | . . . Robots Rewired . | . . . Allies Hacked . | . . . Hacks Repelled . | . . . Allies | -11 -10 -9 -------- Run | Yrd Mat Mat Total Allies . | . . . Largest Group . | . . . Highest-Rated Group . | . . . Highest-Rated Ally . | . . . Total Orders . | . . . Ally Attacks . | . . . Total Damage . | . . . Kills . | . . . Allies Corrupted . | . . . Allies Melted . | . . . Intel | -11 -10 -9 ------- Run | Yrd Mat Mat Robot Analysis Total . | . . . Derelict Logs Recovered . | . . . Drone Launches . | . . . Drone Recoveries . | . . . Exploration | -11 -10 -9 ------------- Run | Yrd Mat Mat Turns Passed 882 | 59 204 619 Spaces Moved 502 | 42 131 329 Core 8 | 8 . . Treads 1 | . . 1 Legs 493 | 34 131 328 Wheels . | . . . Hover . | . . . Flight . | . . . Fastest Speed 50 | 50 120 120 Average Speed 131 | 106 120 139 Slowest Speed 190 | 120 120 190 Overloaded Moves . | . . . Propulsion Burnouts . | . . . Robots Hopped . | . . . Cave-ins Triggered . | . . . Exploration Rate (%) 22 | 3 28 37 Regions Visited 2 Branch Regions . Pre-discovered Areas . | . . . Known Exits Taken . | . . . Unknown Exits Taken 2 | 1 1 . Scrap Searched . | . . . Spaces Dug . | . . . Terrain Destroyed . | . . . Melee . | . . . Projectile . | . . . AOE . | . . . Terrain Rammed . | . . . Walls Destroyed . | . . . Machines Disabled . | . . . Actions | -11 -10 -9 --------- Run | Yrd Mat Mat Total 630 | 56 157 417 Wait 33 | . . 33 Move 500 | 41 130 329 Hop . | . . . Pick Up 22 | 10 7 5 Fast Attach 4 | . 2 2 Attach 9 | 5 . 4 Detach . | . . . Swap 5 | . 3 2 Drop 9 | . 4 5 Fire 48 | . 11 37 Melee . | . . . Ram . | . . . Kick . | . . . Crush . | . . . Escape Stasis . | . . . Rewire . | . . . Trap . | . . . Miscellaneous . | . . . Route ------- -11/Scrapyard -10/Materials -9/Materials History --------- Turn | Location | Event 29 | -11/Scrapyard | Discovered new exit (range 15) 60 | -11/Scrapyard | Entered Materials 201 | -10/Materials | Discovered new exit (range 15) 264 | -10/Materials | Entered another Materials area 264 | -9/Materials | Evolved 2 slots: Propulsion x1, Utility x1 305 | -9/Materials | Build established: Mutant 869 | -9/Materials | Lost 3 parts (1n1u1w) 883 | -9/Materials | Self-destructed Last Messages --------------- 00815_ Triggered Alarm Trap. 00815_ An alarm sounds. 00815_ ALERT: Alarm triggered, dispatching investigation squad. 00816_ ALERT: Hostiles spotted, dispatching reinforcements to Terminal M003. 00819_ W-16 Scout sends out distress signal. 00827_ Terminal disabled. 00829_ Critical hit (Burn: +37). 00832_ Aluminum Leg destroyed. 00833_ EM Pulse Gun destroyed. 00834_ W-16 Scout sends out distress signal. 00835_ U-05 Engineer lays Concrete. 00838_ Med. Armor Plating destroyed. 00838_ Critical hit (Burn: +37). 00871_ G-34 Mercenary destroyed. 00873_ Aluminum Leg destroyed. 00874_ Heat Sink melted. 00874_ Y-45 Defender destroyed. 00880_ G-34 Mercenary destroyed. Map ----- +----------------------------------------------------+ | ???????????????????????????????????????????? | | ???????????????????????????????????????????? | | ???????????????????????????????????????????? | | ???????????????????????????????????????????? | | ???????????????????????????????????????????? | | ???????????????????????????????????????????? | | ???????????????????????????????????????????? | | ???????????????????????????????????????????? | | ????????? ?? ??????????????????????????? | | ???????# ?? ?? ?????????????????????? | | ???????# ?? ? #???????????????????? | | ???????# ?? ?? #???????????????????? | | ???????# ? ?? #???????????????????? | | ???????# """ """ #???????????????????? | | ???????# """ """ #???????????????????? | | ???????# """ """ #???????????????????? | | ???????# #???????????????????? | | ???""??# #???????????????????? | | ????""?# #???????????????????? | | ?????"?#"" =!! #???????????????????? | | ????? #"T =! ###### ???????????? | | ?????? # " u !! ??????????? | | ???????+ g ??????????? | | ???????# g[ ??????????? | | ???????# #######;######+???????????????### | | ???????# # %%@ #???????????????????#T" | | ???????# #"" = #????????????????#### " | | ???????# #"T #????????????????# | | ???????# #"" """"" #????????????????# | | ???????# # """"" #????????????????# | | ???????# # """"" #????????????????# ## | | ???????# # #????????????????# # | | ???????# # ? #????????????????# # | | ???????# ##???######????????????????# %+% | | ???????# ########???????????????????# # | | ???????# ##################### ## | | ???????# + ## ## | | ???????# ########## # # | | ???????######### ##????????# # # | | ???????????????# #?????????# """ """ + # | | ???????????????# #?????????# """ """ # # | | ???????????????# #?????????# """ """ # # | | ???????????????# #?????????# ####### | | ???????????????# #?????????# #?????? | | ???????????????# #?????????###########?????? | | ??????????????? ?????????????????????????? | | ??????????????? ?????????????????????????? | | ??????????????? ?????????????????????????? | | ???????????????## ?????????????????????????? | | ????????????????? ?????????????????????????? | +----------------------------------------------------+ Best States ------------- Heat Dissipation 28 Energy Generation 12 Energy Capacity 265 Matter Stores 300 Matter Capacity 300 Sight Range 16 Terrain Scan Density 10 ECM Strength 1 Armor Coverage 225 Utility Shielding 33 Evasion (%) 55 Item Schematics ----------------- None Robot Schematics ------------------ None Fabricated ------------ Nothing Alien Tech Used ----------------- None Achievements -------------- None Challenges ------------ None Game ------ Seed GreatLargeLog Manual? 0 Play Time 00:10:17 Cumulative 13.6 hours Start 2024.05.27 @ 18:52:41 End 2024.05.27 @ 19:03:17 Sessions 1 Manual Loads 0 Difficulty Rogue Special Mode None Game No. 26 Rogue 23 Adventurer 3 Explorer 0 Win Type - Total 0 Types 0/0/0/0/0/0/0/0/0 Lore% 15 Gallery% 17 Achievement% 15 Wizard Run 0 Options --------- Layout 1 ASCII 0 Keyboard 1 Movement Vi Keybinds 0 Fullscreen 2 Font 32/SmallcapsGlow Map View 50x35 Zoom Use 0% Tactical HUD 1 Map Filters NONE Filters NONE Steam 1 RUN: 9691bca3-aa13-4e67-a8ff-3cb34b438cd2